Cogmind - Beta 11 @@@ ROGUE MODE // 2022.03.23 @ 00:35:53 Player: lumberblack Result: Destroyed by S-43 Plague with Heavy Machine Gun Performance ------------- Evolutions (7) 3500 Regions Visited (28) 5600 Robots Destroyed (119) 595 Value Destroyed (3928) 3928 Prototype IDs (49) 980 Alien Tech Used (0) 0 Bonus (4281) 4281 TOTAL SCORE: 18884 Bonus ------- High Alert Combat Kills 518 Follower Combat Kills 909 Network Hubs Disabled 400 Aligned with FarCom 300 Met Data Miner 300 Met Imprinter 300 Met Warlord at Base 500 MAIN.C Attacked Warlord 500 Built Enhanced Grunts 300 A7 Reached Mainframe 300 Friendly Fire -46 Cogmind --------- Core Integrity 0/1300 Matter 120/300 Energy 99/100 System Corruption 18% Temperature Cool (0) Movement Core (50) Location -3/Research Parts ------- > --- POWER (2) -------- (None) > --- PROPULSION (6) --- (None) > --- UTILITY (11) ----- (None) > --- WEAPON (2) ------- Spear > --- INVENTORY (5) ---- Micro Antimatter Reactor Advanced Transmission Jammer Improved Thermal Shield Enhanced Quantum Rifle Enhanced Quantum Rifle Peak State ------------ > --- POWER ------------ Particle Reactor Micro Antimatter Reactor > --- PROPULSION ------- Improved Antigrav System Improved Antigrav System Improved Antigrav System Combat Antigrav System Antigrav Array > --- UTILITY ---------- Advanced Heat Sink Medium Storage Unit Machine Analyzer Advanced Signal Interpreter Advanced Targeting Computer Experimental Target Analyzer Improved Armor Integrity Analyzer Advanced Transmission Jammer Improved Cloaking Device Improved Focal Shield Advanced System Restoration Module > --- WEAPON ----------- Dispersion Rifle Dispersion Rifle > --- INVENTORY -------- Improved Fusion Compressor Improved Fusion Compressor Particle Reactor Experimental Matter Compressor Advanced Transmission Jammer Centrium Medium Armor Plating Dispersion Rifle Dispersion Rifle Matter Neutralizer Heavy Shock Bomb Launcher [Rating: 141] Favorites ----------- Power Makeshift Power Source Engine Makeshift Power Source Power Core Improved Fusion Compressor Reactor Micro Antimatter Reactor Propulsion Advanced Treads Treads Advanced Treads Leg Aluminum Leg Hover Unit Improved Antigrav System Flight Unit Nuclear Pulse Array Utility Advanced Signal Interpreter Device Improved Sensor Array Storage Medium Storage Unit Processor Advanced Signal Interpreter Hackware Hacking Suite Protection Improved Light Armor Plating Weapon Scythe Energy Gun Dispersion Rifle Energy Cannon Heavy Phase Cannon Ballistic Gun Enhanced Coil Gun Launcher Precision Grenade Launcher Special Weapon Plasma Cutter Slashing Weapon Scythe Piercing Weapon Heavy Pick Special Melee Weapon Improved Datajack Build | -11 -10 -10 -9 -9 -9 -8 -8 -7 -7 -7 -7 -6 -6 -6 -6 -6 -5 -5 -5 -5 -5 -4 -4 -4 -4 -4 -4 -3 ------- Run | Scr Mat Min Mat Min Exi Min Mat Fac Low Low Zio Pro Fac Low Low Dat Pro Fac Upp Upp War Pro Fac Ext Cet Arc Hub Res Slots Evolved 14 | . . . 2 . . . 2 2 . . . . 2 . . . . 2 . . . . 2 . . . . 2 Power 1 | . . . . . . . . . . . . . . . . . . . . . . . . . . . . 1 Propulsion 4 | . . . . . . . 2 . . . . . 1 . . . . 1 . . . . . . . . . . Utility 9 | . . . 2 . . . . 2 . . . . 1 . . . . 1 . . . . 2 . . . . 1 Weapon . | . . . . . . . . . . . . . . . . . . . . . . . . . . . . . Parts Attached 297 | 6 . 7 4 . 1 1 8 20 6 1 10 4 10 2 1 1 4 24 1 . 13 4 32 27 3 3 13 91 Power 29 | 1 . . . . . . . 1 2 . 1 . . . . . . 2 . . . 1 1 . . . 1 19 Engine 4 | 1 . . . . . . . . . . 1 . . . . . . 1 . . . 1 . . . . . . Core 12 | . . . . . . . . 1 2 . . . . . . . . 1 . . . . 1 . . . . 7 Reactor 13 | . . . . . . . . . . . . . . . . . . . . . . . . . . . 1 12 Propulsion 61 | 2 . 2 . . . . 2 3 1 . . . 3 . . . . 12 . . 10 . 4 5 1 . . 16 Treads 30 | 2 . 2 . . . . 2 3 1 . . . 3 . . . . 9 . . 8 . . . . . . . Leg . | . . . . . . . . . . . . . . . . . . . . . . . . . . . . . Wheel . | . . . . . . . . . . . . . . . . . . . . . . . . . . . . . Hover 16 | . . . . . . . . . . . . . . . . . . 2 . . . . . . . . . 14 Flight 15 | . . . . . . . . . . . . . . . . . . 1 . . 2 . 4 5 1 . . 2 Utility 110 | 1 . 4 2 . . . 1 12 3 1 3 . 6 . . . . 9 . . 3 . 10 14 2 3 4 32 Device 48 | 1 . 4 . . . . 1 2 2 . 3 . 3 . . . . 3 . . 1 . 5 7 . 2 . 14 Storage 7 | . . . . . . . . . . . . . . . . . . . . . . . . 1 . . . 6 Processor 25 | . . . . . . . . 9 . 1 . . 2 . . . . 2 . . 2 . 1 2 . . . 6 Hackware 6 | . . . . . . . . 1 . . . . . . . . . 2 . . . . . 2 . . . 1 Protection 24 | . . . 2 . . . . . 1 . . . 1 . . . . 2 . . . . 4 2 2 1 4 5 Artifact . | . . . . . . . . . . . . . . . . . . . . . . . . . . . . . Weapon 97 | 2 . 1 2 . 1 1 5 4 . . 6 4 1 2 1 1 4 1 1 . . 3 17 8 . . 8 24 Energy Gun 12 | . . . . . . . . . . . . . . . . . . . . . . . . . . . . 12 Energy Cannon 26 | . . . 2 . 1 1 3 . . . . . . . . . . . . . . . 3 4 . . 5 7 Ballistic Gun 2 | 1 . . . . . . . . . . . . . . . . . . . . . . . . . . . 1 Ballistic Cannon . | . . . . . . . . . . . . . . . . . . . . . . . . . . . . . Launcher 25 | . . . . . . . . 2 . . 4 1 . 2 1 1 4 1 1 . . 3 3 . . . . 2 Special Weapon 6 | 1 . . . . . . 2 1 . . 1 1 . . . . . . . . . . . . . . . . Impact Weapon . | . . . . . . . . . . . . . . . . . . . . . . . . . . . . . Slashing Weapon 9 | . . . . . . . . 1 . . 1 2 . . . . . . . . . . 3 1 . . 1 . Piercing Weapon 16 | . . . . . . . . . . . . . 1 . . . . . . . . . 8 3 . . 2 2 Special Melee Weapon 1 | . . 1 . . . . . . . . . . . . . . . . . . . . . . . . . . Unidentified Prototypes 8 | . . . . . . . . . . . 2 . . . . . . 1 . . 3 . . . 1 . . 1 Corrupted Parts 3 | . . 2 . . . . . . . . . . . . . . . . . . . . . . . . 1 . System Corruption 11 | . . 9 . . . . . . . . . . . . . . . . . . . . . . . . 2 . Parts Lost 34 | . 1 . . . . . . . . . . . 1 . 1 . . . . . . 1 . 1 3 . 5 21 Power 1 | . . . . . . . . . . . . . . . . . . . . . . 1 . . . . . . Propulsion 15 | . . . . . . . . . . . . . . . 1 . . . . . . . . . 1 . 1 12 Utility 16 | . . . . . . . . . . . . . 1 . . . . . . . . . . 1 2 . 3 9 Weapon 2 | . 1 . . . . . . . . . . . . . . . . . . . . . . . . . 1 . Highest Loss Streak 9 | . 1 . . . . . . . . . . . 1 . 1 . . . . . . 1 . 1 3 . 4 9 To Critical Strikes . | . . . . . . . . . . . . . . . . . . . . . . . . . . . . . Average Slot Usage (%) 82 | . 49 65 48 55 55 55 63 80 99 100 99 93 91 93 87 86 86 87 84 82 81 80 76 81 83 83 78 78 Engine 2 | . . . . . . . . . . . 5 7 6 6 6 6 6 4 5 5 5 3 1 . . . . . Core 2 | . . . . . . . . . 7 7 1 . . . . . . . . . . . 3 5 5 5 5 2 Treads 18 | . 28 28 22 22 22 22 33 29 30 30 30 30 31 33 27 26 26 27 29 29 27 29 2 . . . . . Hover 2 | . . . . . . . . . . . . . . . . . . . . . . . . . . . . 16 Flight 3 | . . . . . . . . . . . . . . . . . . . . . . . 13 15 15 15 14 . Device 17 | . 14 25 11 11 11 11 9 7 15 15 20 23 25 20 20 20 20 17 17 17 16 17 21 24 21 20 9 13 Processor 17 | . . . . . . . . 24 19 21 16 15 13 20 20 20 20 17 17 17 17 17 15 19 21 21 19 21 Hackware 1 | . . . . . . . . 6 7 1 . . . . . . . 4 . . . . . . . . . . Protection 6 | . . . 14 22 22 22 13 1 3 7 7 7 6 6 6 6 6 4 11 11 11 11 8 5 8 10 18 2 Special Weapon 1 | . 7 . . . . . 3 1 7 7 7 1 . . . . . . . . . . . . . . . . Slashing Weapon 2 | . . . . . . . . 5 7 7 6 6 5 . . . . . . . . . 2 4 5 5 4 . Piercing Weapon 2 | . . . . . . . . . . . . . . 6 6 6 6 4 . . . . 6 4 5 5 3 . Naked Turns 23 | . . . . . . . . . . . . . . . . . . . . . . . . . . . . 23 Heaviest Build 65 | 3 2 5 3 3 3 3 9 10 12 12 20 20 15 18 12 18 18 17 17 11 11 11 40 40 34 34 40 65 Greatest Support 182 | 3 3 42 3 3 3 3 3 44 37 12 103 103 37 137 12 109 109 182 182 12 36 12 45 43 39 39 39 78 Greatest Overweight (x) 3 | . . . . . . . 2 1 . . 1 1 1 1 . . 1 1 . . 3 2 . . . . 1 1 Average Overweight (x) . | . . . . . . . . . . . . . . . . . . . . . . . . . . . . . Largest Inventory Capacity 10 | 8 5 5 5 5 5 5 5 5 5 5 5 5 5 5 5 5 5 5 5 5 5 5 5 5 5 5 5 10 Average Capacity 5 | 5 5 5 5 5 5 5 5 5 5 5 5 5 5 5 5 5 5 5 5 5 5 5 5 5 5 5 5 9 Most Carried 10 | 6 . 5 5 5 5 5 5 5 5 5 5 5 5 5 5 5 5 5 5 5 5 5 5 5 5 5 5 10 Average Carried 5 | . . 4 4 5 4 4 4 4 4 4 4 5 4 4 4 4 4 4 4 5 5 4 4 4 4 5 4 8 Final Capacity 5 | 5 5 5 5 5 5 5 5 5 5 5 5 5 5 5 5 5 5 5 5 5 5 5 5 5 5 5 5 5 Final Carried 5 | . . 5 5 5 5 5 5 5 5 5 5 5 5 4 5 4 5 4 5 5 5 5 5 5 5 5 5 5 Class Distribution -------------------- 43% | Scout 14% | Mutant 11% | Scavenger-Mutant 8% | Infiltrator-Ninja 6% | Infiltrator-Mutant 5% | Scavenger-Scout 3% | Commander-Mutant 3% | Ninja Dominant Class ---------------- Mutant | -10/Materials Mutant | -10/Mines Mutant | -9/Materials Mutant | -9/Mines Mutant | -9/Exiles Mutant | -8/Mines Mutant | -8/Materials Scout | -7/Factory Scout | -7/Lower Caves Scout | -7/Lower Caves Scout | -7/Zion Scout | -6/Proximity Caves Scavenger-Scout | -6/Factory Scavenger-Scout | -6/Lower Caves Scout | -6/Lower Caves Scout | -6/Data Miner Scout | -5/Proximity Caves Scout | -5/Factory Scout | -5/Upper Caves Scout | -5/Upper Caves Scout | -5/Warlord Scout | -4/Proximity Caves Infiltrator-Ninja | -4/Factory Infiltrator-Mutant | -4/Extension Scavenger-Mutant | -4/Cetus Commander-Mutant | -4/Archives Commander-Mutant | -4/Hub_04(d) Scavenger-Mutant | -3/Research Resources | -11 -10 -10 -9 -9 -9 -8 -8 -7 -7 -7 -7 -6 -6 -6 -6 -6 -5 -5 -5 -5 -5 -4 -4 -4 -4 -4 -4 -3 ----------- Run | Scr Mat Min Mat Min Exi Min Mat Fac Low Low Zio Pro Fac Low Low Dat Pro Fac Upp Upp War Pro Fac Ext Cet Arc Hub Res Matter Collected 6604 | 256 . 94 . . 178 20 . 172 158 46 22 118 112 103 50 . 154 210 30 10 30 25 1278 1071 229 216 242 1780 Remotely . | . . . . . . . . . . . . . . . . . . . . . . . . . . . . . Salvage Created 6190 | 11 . . . . . 25 30 227 66 153 . 51 266 22 111 . 385 125 . . . 100 1139 1280 177 . 172 1850 Parts 307 | 3 . . . . . 2 6 9 . 3 . 6 13 . 4 . 9 7 . . . 13 64 66 11 . 8 83 Haulers Intercepted 10 | . . . . . . . . 3 . . . . 1 . . . . 1 . . . . 3 . . . 1 1 Recyclers Shooed 9 | . . . . . . . . 2 . . . . 1 . . . . . . . . . 1 . . . 1 4 Parts Field Recycled . | . . . . . . . . . . . . . . . . . . . . . . . . . . . . . Retrieved Matter . | . . . . . . . . . . . . . . . . . . . . . . . . . . . . . Parts Self-Destructed 72 | . . . . . . . . . . 2 . 7 . . . . 17 . . . 37 9 . . . . . . Prevented 2 | . . . . . . . . . . . . . . . . . . . . . 2 . . . . . . . Kills | -11 -10 -10 -9 -9 -9 -8 -8 -7 -7 -7 -7 -6 -6 -6 -6 -6 -5 -5 -5 -5 -5 -4 -4 -4 -4 -4 -4 -3 ------- Run | Scr Mat Min Mat Min Exi Min Mat Fac Low Low Zio Pro Fac Low Low Dat Pro Fac Upp Upp War Pro Fac Ext Cet Arc Hub Res Combat Hostiles Destroyed 68 | . . . . . . 4 . . . . . 5 . . 1 . 5 . . . . 9 12 13 3 . . 16 Melee 20 | . . . . . . . . . . . . . . . . . . . . . . . 2 13 3 . . 2 Guns 7 | . . . . . . . . . . . . . . . . . . . . . . . . . . . . 7 Cannons 3 | . . . . . . 1 . . . . . . . . . . . . . . . . . . . . . 2 AOE 36 | . . . . . . 3 . . . . . 5 . . 1 . 5 . . . . 9 10 . . . . 3 Classes Destroyed 17 | 1 . . . . . 1 1 2 . 1 . . 1 . 3 . 2 . . . . . 1 4 . . . . Worker 9 | . . . . . . . . . . . . . . . . . . . . . . . 4 1 . . 1 3 Builder 7 | . . . . . . . 1 . . . . . . . . . . 1 . . . . 1 3 . . 1 . Tunneler 5 | 1 . . . . . . . 1 . . . . . . . . . 1 . . . . . . . . . 2 Hauler 10 | . . . . . . . . 3 . . . . 1 . . . . 1 . . . . 3 . . . 1 1 Recycler 13 | . . . . . . . . 1 . . . . 1 . . . . . . . . . 4 2 . . . 5 Minesweeper 1 | . . . . . . . . . . . . . . . . . 1 . . . . . . . . . . . Operator 2 | . . . . . . . . . . . . . . . . . . . . . . . . 2 . . . . Watcher 4 | . . . . . . . . . . . . . 1 . . . . . . . . . . 1 . . 1 1 Swarmer 37 | . . . . . . 4 . . . . . 5 . . . . 4 . . . . 9 9 . . . . 6 Grunt 6 | . . . . . . . . . . . . . . . . . . . . . . . . 6 . . . . Sentry 5 | . . . . . . . . . . . . . . . . . . . . . . . . 2 . . . 3 Programmer 16 | . . . . . . . . . . . . . . . . . . . . . . . 3 4 2 . . 7 Behemoth 1 | . . . . . . . . . . . . . . . . . 1 . . . . . . . . . . . Cetus Guard 1 | . . . . . . . . . . . . . . . . . . . . . . . . . 1 . . . Decomposer 2 | . . . . . . . . . . . . . . . 2 . . . . . . . . . . . . . Packrat 3 | . . . . . . . . . . . . . . . . . 3 . . . . . . . . . . . Samaritan 1 | . . . . . . . . . . . . . . . 1 . . . . . . . . . . . . . Tinkerer 1 | . . . . . . . . . . 1 . . . . . . . . . . . . . . . . . . Thief 1 | . . . . . . . . . . . . . . . 1 . . . . . . . . . . . . . Guerrilla 1 | . . . . . . . . . . . . . . . . . . . . . . . . 1 . . . . Best Kill Streak 7 | 1 . . . . . 4 1 2 . . . 5 2 . 2 . 3 1 . . . 5 6 4 2 . 3 7 Combat Bots Only 7 | . . . . . . 4 . . . . . 5 . . 1 . 3 . . . . 5 6 3 2 . . 7 Max Kills in Single Turn 4 | 1 . . . . . 3 1 1 . 1 . 4 1 . 1 . 2 1 . . . 3 3 1 1 . 1 1 Gunslinging . | . . . . . . . . . . . . . . . . . . . . . . . . . . . . . Exploded 4 | . . . . . . 3 . . . . . 4 . . 1 . 2 . . . . 3 3 . . . . 1 Melee 1 | . . . . . . . . . . . . . . . . . . . . . . . 1 1 1 . . 1 Uniques/NPCs Destroyed . | . . . . . . . . . . . . . . . . . . . . . . . . . . . . . Combat | -11 -10 -10 -9 -9 -9 -8 -8 -7 -7 -7 -7 -6 -6 -6 -6 -6 -5 -5 -5 -5 -5 -4 -4 -4 -4 -4 -4 -3 -------- Run | Scr Mat Min Mat Min Exi Min Mat Fac Low Low Zio Pro Fac Low Low Dat Pro Fac Upp Upp War Pro Fac Ext Cet Arc Hub Res Damage Taken 9970 | . 137 40 . . . 76 276 359 36 122 . 428 248 . 141 . 31 21 60 34 156 660 793 746 567 35 1027 3977 Core 2101 | . 37 . . . . 70 67 30 22 15 . 6 26 . 46 . . 21 . . . 37 70 46 73 . 219 1316 Absorbed by Shields 166 | . . . . . . . . . . . . . . . . . . . . . . . . 77 41 14 34 . Redirected to Shielding 342 | . . . . . . . . . . 18 . 44 . . . . . . . . 31 34 4 . . . 158 53 Regen/Repaired (Parts) 825 | . . . . . . . . . . . 676 . . . . . . 149 . . . . . . . . . . Core Remaining (%) 86 | 100 . 85 . . . 82 87 . . . . 89 . . . . 91 . . . . 94 . . . . 64 . Volleys Fired 191 | 12 1 . 2 . 2 2 7 2 . . . 4 . 3 3 . 8 . . . . 9 9 43 . . 9 75 Largest 2 | 1 1 . 1 . 1 1 1 1 . . . 1 . 1 1 . 1 . . . . 1 1 1 . . 1 2 Hottest 180 | 20 100 . 75 . 75 75 75 33 . . . 36 . 36 36 . 36 . . . . 36 90 90 . . 90 180 Shots Fired 241 | 12 1 . 2 . 2 2 7 2 . . . 4 . 3 3 . 8 . . . . 9 9 43 . . 9 125 Gun 94 | 12 . . . . . . . . . . . . . . . . . . . . . . . . . . . 82 Cannon 104 | . . . 2 . 2 2 5 . . . . . . . . . . . . . . . 3 43 . . 9 38 Launcher 39 | . . . . . . . . 1 . . . 4 . 3 3 . 8 . . . . 9 6 . . . . 5 Special 4 | . 1 . . . . . 2 1 . . . . . . . . . . . . . . . . . . . . Kinetic 17 | 12 . . . . . . . . . . . . . . . . . . . . . . . . . . . 5 Thermal 185 | . 1 . 2 . 2 2 7 1 . . . . . . . . . . . . . . 3 43 . . 9 115 Explosive 34 | . . . . . . . . 1 . . . 4 . 3 3 . 8 . . . . 9 6 . . . . . Electromagnetic 5 | . . . . . . . . . . . . . . . . . . . . . . . . . . . . 5 Robot Hit Streak 16 | 3 . . . . . 1 1 . . . . 1 . . 4 . 6 . . . . 7 9 2 . . . 16 Robot Miss Streak 6 | 1 2 . . . . . 1 1 . . . . . . . . . . . . . . . 1 . . . 6 Penetration Max . | . . . . . . . . . . . . . . . . . . . . . . . . . . . . . Secondary Targets 2 | . . . . . . . . . . . . . . . . . . . . . . . . . . . . 2 Max Gunslinging Chain 1 | . . . . . . . . . . . . . . . . . . . . . . . . . . . . 1 Shots Hit Robots 242 | 7 . 1 . . . 1 1 10 3 7 . 1 9 1 6 . 6 7 . . . 1 29 57 12 1 5 77 Core Hits 150 | 2 . . . . . 4 1 3 1 2 . 6 4 . 2 . 11 1 . . . 11 26 23 5 . 7 41 Critical Kills 7 | . . . . . . . . . . . . . . . . . . . . . . . . . . . . 7 Critical Parts Destroyed 8 | . . . . . . . . . . . . . . . . . . . . . . . . . . . . 8 Critical Strikes 40 | . . . . . . . . 1 . . . . . . 1 . . . . . . . 5 10 4 1 3 15 Destroy 15 | . . . . . . . . . . . . . . . . . . . . . . . . . . . . 15 Sever 2 | . . . . . . . . 1 . . . . . . . . . . . . . . . 1 . . . . Impale 23 | . . . . . . . . . . . . . . . 1 . . . . . . . 5 9 4 1 3 . Melee Attacks 268 | . . 1 . . . . . 18 3 7 . 1 15 3 3 . 9 27 . . . . 57 81 19 1 14 9 Impact . | . . . . . . . . . . . . . . . . . . . . . . . . . . . . . Slashing 83 | . . . . . . . . 18 3 7 . 1 13 . . . . . . . . . 11 24 3 . 3 . Piercing 184 | . . . . . . . . . . . . . 2 3 3 . 9 27 . . . . 46 57 16 1 11 9 Sneak Attacks 58 | . . 1 . . . . . 7 . 3 . . 4 . 3 . 4 3 . . . . 12 12 . . 4 5 Combat Hostiles 6 | . . . . . . . . . . . . . . . . . . . . . . . . 6 . . . . Follow-up Attacks 18 | . . . . . . . . . . . . . . . . . . . . . . . 4 12 2 . . . Damage Inflicted 15084 | 108 6 . . . . 203 21 562 148 494 . 331 431 81 390 . 751 407 . . . 767 2513 3302 500 69 732 3268 Guns 1633 | 108 . . . . . . . . . . . . . . . . . . . . . . . . . . . 1525 Cannons 720 | . . . . . . 25 . . . . . . . . . . . . . . . . . 69 . . . 626 Explosions 3474 | . . . . . . 178 . . . . . 331 . . 170 . 465 . . . . 767 892 . . . 286 385 Melee 9198 | . . . . . . . . 562 148 494 . . 431 81 220 . 286 407 . . . . 1621 3233 500 69 446 700 Ramming 38 | . 6 . . . . . . . . . . . . . . . . . . . . . . . . . . 32 Kinetic 250 | 108 . . . . . . . . . . . . . . . . . . . . . . . . . . . 142 Thermal 2302 | . . . . . . 203 21 . . . . . . . . . . . . . . . . 69 . . . 2009 Explosive 2625 | . . . . . . . . . . . . 331 . . 170 . 465 . . . . 767 892 . . . . . Electromagnetic 671 | . . . . . . . . . . . . . . . . . . . . . . . . . . . 286 385 Impact . | . . . . . . . . . . . . . . . . . . . . . . . . . . . . . Slashing 2596 | . . . . . . . . 562 148 494 . . 431 . . . . . . . . . 252 623 86 . . . Piercing 6602 | . . . . . . . . . . . . . . 81 220 . 286 407 . . . . 1369 2610 414 69 446 700 Highest Corruption 18 | . 1 10 . . . . . 2 2 2 2 . 1 1 1 1 1 . . . . 5 3 3 3 3 9 18 Average Corruption 3 | . 1 8 . . . . . 1 2 2 2 . 1 1 1 1 1 . . . . 3 1 3 3 3 3 9 Corruption Purged 1 | . . . . . . . . . . . . . . . . . . . . . . . . . . . . 1 Corruption Blocked 3 | . . . . . . . . 3 . . . . . . . . . . . . . . . . . . . . Effects 87 | . . 11 . . . . . 1 1 2 . . . 1 . . 2 . . . . 1 3 20 8 2 4 31 Message Errors 14 | . . 2 . . . . . . . 1 . . . . . . 1 . . . . . 1 2 . . 2 5 Matter Fused 23 | . . 3 . . . . . . 1 . . . . 1 . . . . . . . . 1 6 . 2 . 9 Heat Flow Errors 10 | . . 1 . . . . . . . . . . . . . . . . . . . 1 . 2 1 . 1 4 Energy Discharges 14 | . . 3 . . . . . . . 1 . . . . . . . . . . . . 1 5 3 . 1 . Parts Rejected 3 | . . . . . . . . . . . . . . . . . . . . . . . . 1 . . . 2 Data Loss (minor) 10 | . . 1 . . . . . 1 . . . . . . . . 1 . . . . . . 2 2 . . 3 Data Loss (major) 2 | . . . . . . . . . . . . . . . . . . . . . . . . . 1 . . 1 Misfires 1 | . . . . . . . . . . . . . . . . . . . . . . . . . . . . 1 Alerts 5 | . . 1 . . . . . . . . . . . . . . . . . . . . . 2 1 . . 1 Misdirections 3 | . . . . . . . . . . . . . . . . . . . . . . . . . . . . 3 Weapon Failures 2 | . . . . . . . . . . . . . . . . . . . . . . . . . . . . 2 Overload Shots . | . . . . . . . . . . . . . . . . . . . . . . . . . . . . . Overflow Damage 2209 | . . . . . . 29 . 147 17 188 . . 66 58 196 . 47 111 . . . 35 425 401 . . 345 144 Projectiles 7 | . . . . . . . . . . . . . . . . . . . . . . . . 4 . . . 3 Explosions 344 | . . . . . . 29 . . . . . . . . 30 . 1 . . . . 35 122 . . . 127 . Melee 1858 | . . . . . . . . 147 17 188 . . 66 58 166 . 46 111 . . . . 303 397 . . 218 141 Knockbacks . | . . . . . . . . . . . . . . . . . . . . . . . . . . . . . Impact . | . . . . . . . . . . . . . . . . . . . . . . . . . . . . . Kinetic . | . . . . . . . . . . . . . . . . . . . . . . . . . . . . . Secondary . | . . . . . . . . . . . . . . . . . . . . . . . . . . . . . Self-Inflicted Damage 378 | . 2 . . . . 54 . . . . . . . . 121 . 7 . . . . . 75 . . . 103 16 Shots 8 | . . . . . . 1 . . . . . . . . 3 . 1 . . . . . 2 . . . 1 . Rammed 4 | . 3 . . . . . . . . . . . . . . . . . . . . . . . . . . 1 Targets Rammed 4 | . 3 . . . . . . . . . . . . . . . . . . . . . . . . . . 1 Kicked . | . . . . . . . . . . . . . . . . . . . . . . . . . . . . . Crushed . | . . . . . . . . . . . . . . . . . . . . . . . . . . . . . Highest Temperature 673 | . . 233 . . . 39 30 . . . . 3 . . . . 11 . . . . 152 210 262 260 . 262 673 Average Temperature 136 | . . 125 . . . 26 17 . . . . 3 . . . . 7 . . . . 57 62 93 132 . 103 187 Received Heat Transfer 999 | . 6 6 . . . . 180 9 . 27 . 111 48 . . . . . 9 9 27 18 63 175 88 4 18 201 Effects 36 | . . . . . . . . . . . . . . . . . . . . . . . . . . . 6 30 Shutdowns 8 | . . . . . . . . . . . . . . . . . . . . . . . . . . . . 8 Energy Bleed 3 | . . . . . . . . . . . . . . . . . . . . . . . . . . . . 3 Interference 14 | . . . . . . . . . . . . . . . . . . . . . . . . . . . 6 8 Matter Decay 3 | . . . . . . . . . . . . . . . . . . . . . . . . . . . . 3 Short Circuit 1 | . . . . . . . . . . . . . . . . . . . . . . . . . . . . 1 Damage (minor) 1 | . . . . . . . . . . . . . . . . . . . . . . . . . . . . 1 Damage (major) 5 | . . . . . . . . . . . . . . . . . . . . . . . . . . . . 5 Damage (core) 1 | . . . . . . . . . . . . . . . . . . . . . . . . . . . . 1 Siege Activations . | . . . . . . . . . . . . . . . . . . . . . . . . . . . . . Robots Corrupted 3 | . . . . . . . . . . . . . . . . . . . . . . . . . . . 1 2 Combat Hostiles 2 | . . . . . . . . . . . . . . . . . . . . . . . . . . . . 2 Parts Fried 8 | . . . . . . . . . . . . . . . . . . . . . . . . 1 . . 2 5 Impact Corruptions . | . . . . . . . . . . . . . . . . . . . . . . . . . . . . . Robots Melted . | . . . . . . . . . . . . . . . . . . . . . . . . . . . . . Combat Hostiles . | . . . . . . . . . . . . . . . . . . . . . . . . . . . . . Parts Melted 5 | . . . . . . . . . . . . . . . . . . . . . . . . . . . . 5 Heat Transferred 2679 | . . . . . . 237 74 . . . . . . . . . . . . . . . . 74 . . . 2294 Parts Sabotaged . | . . . . . . . . . . . . . . . . . . . . . . . . . . . . . Parts Stolen . | . . . . . . . . . . . . . . . . . . . . . . . . . . . . . Parts Stripped . | . . . . . . . . . . . . . . . . . . . . . . . . . . . . . Power Chain Reactions . | . . . . . . . . . . . . . . . . . . . . . . . . . . . . . Missiles Intercepted . | . . . . . . . . . . . . . . . . . . . . . . . . . . . . . Alert | -11 -10 -10 -9 -9 -9 -8 -8 -7 -7 -7 -7 -6 -6 -6 -6 -6 -5 -5 -5 -5 -5 -4 -4 -4 -4 -4 -4 -3 ------- Run | Scr Mat Min Mat Min Exi Min Mat Fac Low Low Zio Pro Fac Low Low Dat Pro Fac Upp Upp War Pro Fac Ext Cet Arc Hub Res Peak Influence 1028 | 5 26 9 114 44 . 123 207 225 . . . . 269 . . . . 117 . . . . 621 413 234 346 1028 881 Initial 535 | . 3 9 3 44 . . 47 93 . . . . 220 . . . . 62 . . . . 138 303 41 93 121 535 Average 295 | 2 17 9 59 44 . 113 106 136 . . . . 170 . . . . 51 . . . . 378 160 127 290 506 705 Maximum Alert Level 3 | . . . . . . . 1 1 . . . . 1 . . . . . . . . . 2 2 1 1 3 3 Low Security (%) 54 | 100 100 100 100 100 . 100 87 85 . . . . 68 . . . . 100 . . . . 29 74 70 21 13 . Level 1 12 | . . . . . . . 12 14 . . . . 31 . . . . . . . . . 14 22 29 78 33 . Level 2 20 | . . . . . . . . . . . . . . . . . . . . . . . 56 2 . . 25 50 Level 3 11 | . . . . . . . . . . . . . . . . . . . . . . . . . . . 27 49 Level 4 . | . . . . . . . . . . . . . . . . . . . . . . . . . . . . . Level 5 . | . . . . . . . . . . . . . . . . . . . . . . . . . . . . . High Security . | . . . . . . . . . . . . . . . . . . . . . . . . . . . . . Max Security . | . . . . . . . . . . . . . . . . . . . . . . . . . . . . . Squads Dispatched 26 | . 2 . 1 . . . 2 4 . . . . 1 . . . . 1 . . . . 5 2 . . 3 5 Investigation 7 | . 1 . . . . . . 3 . . . . 1 . . . . . . . . . 2 . . . . . Extermination 3 | . . . . . . . . . . . . . . . . . . . . . . . 1 . . . . 2 Reinforcement 14 | . 1 . 1 . . . 2 1 . . . . . . . . . 1 . . . . 2 2 . . 3 1 Assault 2 | . . . . . . . . . . . . . . . . . . . . . . . . . . . . 2 Garrison . | . . . . . . . . . . . . . . . . . . . . . . . . . . . . . Intercept . | . . . . . . . . . . . . . . . . . . . . . . . . . . . . . Searches Triggered . | . . . . . . . . . . . . . . . . . . . . . . . . . . . . . Data Miner Redirects 1 | . . . . . . . . . . . . . . . . . . . . . . . . . . . . 1 Construction Impeded 1 | . . . . . . . . . . . . . . . . . . . . . . . . 1 . . . . Haulers Reinforced 1 | . . . . . . . . . . . . . . . . . . 1 . . . . . . . . . . Active Scanning Responses . | . . . . . . . . . . . . . . . . . . . . . . . . . . . . . Cargo Convoy Interrupts . | . . . . . . . . . . . . . . . . . . . . . . . . . . . . . Stealth | -11 -10 -10 -9 -9 -9 -8 -8 -7 -7 -7 -7 -6 -6 -6 -6 -6 -5 -5 -5 -5 -5 -4 -4 -4 -4 -4 -4 -3 --------- Run | Scr Mat Min Mat Min Exi Min Mat Fac Low Low Zio Pro Fac Low Low Dat Pro Fac Upp Upp War Pro Fac Ext Cet Arc Hub Res Distress Signals 9 | . . . 1 . . . 3 . . . . . . . . . . . . . . . 1 . 1 . 2 1 Communications Jammed 129 | . . . . . . . . . . . . . . . . . . . . . . . 43 8 64 . 9 5 Distress Signals 129 | . . . . . . . . . . . . . . . . . . . . . . . 43 8 64 . 9 5 Times Spotted 234 | . 6 1 3 . . 4 19 9 2 3 . 21 4 . 1 . 7 2 3 3 12 12 35 17 7 3 13 47 Peak Tracking Total 14 | . 4 1 4 . 9 4 14 4 2 3 . 13 1 . 1 . 6 1 3 3 12 7 9 2 5 1 5 9 Tactical Retreats 34 | . . . . . . . 1 3 1 1 . 7 1 . . . 2 . . . . 2 7 1 . . 2 6 Traps | -11 -10 -10 -9 -9 -9 -8 -8 -7 -7 -7 -7 -6 -6 -6 -6 -6 -5 -5 -5 -5 -5 -4 -4 -4 -4 -4 -4 -3 ------- Run | Scr Mat Min Mat Min Exi Min Mat Fac Low Low Zio Pro Fac Low Low Dat Pro Fac Upp Upp War Pro Fac Ext Cet Arc Hub Res Traps Triggered 14 | . . 1 . . . . . 1 . . . . 2 . . . . . . . . . 3 5 . . 1 1 Indirectly . | . . . . . . . . . . . . . . . . . . . . . . . . . . . . . Trap Hack Attempts . | . . . . . . . . . . . . . . . . . . . . . . . . . . . . . Triggered . | . . . . . . . . . . . . . . . . . . . . . . . . . . . . . Disarmed . | . . . . . . . . . . . . . . . . . . . . . . . . . . . . . Reprogrammed . | . . . . . . . . . . . . . . . . . . . . . . . . . . . . . Reused . | . . . . . . . . . . . . . . . . . . . . . . . . . . . . . Traps Extracted 6 | . . 5 . . . . . . 1 . . . . . . . . . . . . . . . . . . . Installed . | . . . . . . . . . . . . . . . . . . . . . . . . . . . . . Triggered 10 | . . . . . . . . . . . . . . . . . . . . 1 9 . . . . . . . Most Traps Carried 6 | . . 5 5 5 5 5 5 5 6 6 6 6 6 . . . . . . . . . . . . . . . Machines | -11 -10 -10 -9 -9 -9 -8 -8 -7 -7 -7 -7 -6 -6 -6 -6 -6 -5 -5 -5 -5 -5 -4 -4 -4 -4 -4 -4 -3 ---------- Run | Scr Mat Min Mat Min Exi Min Mat Fac Low Low Zio Pro Fac Low Low Dat Pro Fac Upp Upp War Pro Fac Ext Cet Arc Hub Res Machines Disabled 14 | . . . . . 1 2 . . . . . . . . . . . . . . . . 3 2 . 2 4 . Max in Single Turn 3 | . . . . . 1 2 . . . . . . . . . . . . . . . . 3 1 . . 3 . Garrison Access 2 | . . . . . . . . . . . . . . . . . . 1 . . . . . . . . 1 . Network Hub 2 | . . . . . . . . . . . . . . . . . . . . . . . . . . . 2 . Machines Sabotaged . | . . . . . . . . . . . . . . . . . . . . . . . . . . . . . Garrisons Compromised . | . . . . . . . . . . . . . . . . . . . . . . . . . . . . . Overloaded Fab Kills . | . . . . . . . . . . . . . . . . . . . . . . . . . . . . . Hacking | -11 -10 -10 -9 -9 -9 -8 -8 -7 -7 -7 -7 -6 -6 -6 -6 -6 -5 -5 -5 -5 -5 -4 -4 -4 -4 -4 -4 -3 --------- Run | Scr Mat Min Mat Min Exi Min Mat Fac Low Low Zio Pro Fac Low Low Dat Pro Fac Upp Upp War Pro Fac Ext Cet Arc Hub Res Machines Accessed 67 | . 1 1 7 . 1 . 4 6 . 1 . . 3 . . 4 . 11 . . 2 . 7 7 1 . 5 6 Terminals 46 | . 1 . 5 . . . 4 5 . . . . 3 . . . . 8 . . . . 6 6 1 . 4 3 Fabricators 2 | . . . . . . . . . . . . . . . . . . 1 . . . . . . . . . 1 Repair Stations 3 | . . . . . . . . . . . . . . . . . . 1 . . . . . 1 . . . 1 Recycling Units . | . . . . . . . . . . . . . . . . . . . . . . . . . . . . . Scanalyzers 4 | . . . 2 . . . . . . . . . . . . . . . . . . . 1 . . . . 1 Garrison Access 3 | . . . . . . . . 1 . . . . . . . . . 1 . . . . . . . . 1 . Total Hacks 183 | . 3 1 22 . 1 . 9 13 . 1 . . 9 . . 32 . 24 . . 2 . 15 21 1 . 17 12 Successful 97 | . . 1 16 . 1 . 4 3 . 1 . . 4 . . 32 . 15 . . 2 . 4 7 . . 7 . Failed 86 | . 3 . 6 . . . 5 10 . . . . 5 . . . . 9 . . . . 11 14 1 . 10 12 Catastrophic 21 | . . . 1 . . . 1 . . . . . . . . . . 2 . . . . 2 5 1 . 3 6 Database Lockouts . | . . . . . . . . . . . . . . . . . . . . . . . . . . . . . Manual 54 | . 2 . 10 . 1 . 5 7 . . . . . . . . . 5 . . 1 . 2 15 1 . 3 2 Terminals 118 | . 3 . 15 . . . 9 12 . . . . 9 . . . . 15 . . . . 13 19 1 . 15 7 Fabricators 4 | . . . . . . . . . . . . . . . . . . 2 . . . . . . . . . 2 Repair Stations 8 | . . . . . . . . . . . . . . . . . . 5 . . . . . 2 . . . 1 Recycling Units . | . . . . . . . . . . . . . . . . . . . . . . . . . . . . . Scanalyzers 11 | . . . 7 . . . . . . . . . . . . . . . . . . . 2 . . . . 2 Garrison Access 5 | . . . . . . . . 1 . . . . . . . . . 2 . . . . . . . . 2 . Terminal Hacks 75 | . . 1 7 . 1 . 3 3 . 1 . . 4 . . 32 . 8 . . 2 . 3 5 . . 5 . Record 12 | . . . . . . . . . . . . . . . . 11 . . . . 1 . . . . . . . Part Schematic 13 | . . . . . . . . . . . . . . . . 12 . . . . . . 1 . . . . . Robot Schematic 6 | . . . . . . . . . . . . . . . . 6 . . . . . . . . . . . . Prototype ID Bank 7 | . . . 2 . . . 1 . . . . . . . . 3 . 1 . . . . . . . . . . Open Door 3 | . . 1 . . . . . . . 1 . . . . . . . . . . 1 . . . . . . . Open DSF 5 | . . . . . . . . 1 . . . . 1 . . . . 3 . . . . . . . . . . Level Access Points 1 | . . . . . . . 1 . . . . . . . . . . . . . . . . . . . . . Branch Access Points 5 | . . . 1 . . . . 1 . . . . 1 . . . . 1 . . . . . . . . 1 . Emergency Access Points 1 | . . . . . . . . . . . . . . . . . . . . . . . . . . . 1 . Terminal Index 3 | . . . . . . . . . . . . . . . . . . 1 . . . . 1 1 . . . . Unreport Threat 7 | . . . . . . . . . . . . . 1 . . . . 2 . . . . 1 3 . . . . Locate Traps 3 | . . . 2 . . . . . . . . . . . . . . . . . . . . 1 . . . . Hauler Manifests 1 | . . . . . . . . . . . . . 1 . . . . . . . . . . . . . . . Zone Layout 7 | . . . 2 . . . 1 1 . . . . . . . . . . . . . . . . . . 3 . EX-Prototype ID Bank 1 | . . . . . 1 . . . . . . . . . . . . . . . . . . . . . . . Fabricator Hacks 1 | . . . . . . . . . . . . . . . . . . 1 . . . . . . . . . . Load Schematic 1 | . . . . . . . . . . . . . . . . . . 1 . . . . . . . . . . Repair Station Hacks 5 | . . . . . . . . . . . . . . . . . . 4 . . . . . 1 . . . . Scan Component 3 | . . . . . . . . . . . . . . . . . . 2 . . . . . 1 . . . . Repair 2 | . . . . . . . . . . . . . . . . . . 2 . . . . . . . . . . Recycling Unit Hacks . | . . . . . . . . . . . . . . . . . . . . . . . . . . . . . Scanalyzer 8 | . . . 7 . . . . . . . . . . . . . . . . . . . 1 . . . . . Insert Component 5 | . . . 4 . . . . . . . . . . . . . . . . . . . 1 . . . . . Analyze 3 | . . . 3 . . . . . . . . . . . . . . . . . . . . . . . . . Garrison Access Hacks 2 | . . . . . . . . . . . . . . . . . . 1 . . . . . . . . 1 . Seal Access 2 | . . . . . . . . . . . . . . . . . . 1 . . . . . . . . 1 . Unauthorized Hacks 6 | . . . 2 . . . 1 . . . . . . . . . . 1 . . . . . 1 . . 1 . Terminals 6 | . . . 2 . . . 1 . . . . . . . . . . 1 . . . . . 1 . . 1 . Track 2 | . . . 1 . . . . . . . . . . . . . . . . . . . . 1 . . . . Assimilate 1 | . . . . . . . 1 . . . . . . . . . . . . . . . . . . . . . Botnet 2 | . . . . . . . . . . . . . . . . . . 1 . . . . . . . . 1 . Disrupt 1 | . . . 1 . . . . . . . . . . . . . . . . . . . . . . . . . Fabricators . | . . . . . . . . . . . . . . . . . . . . . . . . . . . . . Repair Stations . | . . . . . . . . . . . . . . . . . . . . . . . . . . . . . Recycling Units . | . . . . . . . . . . . . . . . . . . . . . . . . . . . . . Scanalyzers . | . . . . . . . . . . . . . . . . . . . . . . . . . . . . . Garrison Access . | . . . . . . . . . . . . . . . . . . . . . . . . . . . . . Data Cores Recovered . | . . . . . . . . . . . . . . . . . . . . . . . . . . . . . Used . | . . . . . . . . . . . . . . . . . . . . . . . . . . . . . Hacking Detections 54 | . 1 . 7 . . . 4 5 . . . . 3 . . . . 9 . . . . 7 7 1 . 4 6 Full Trace Events 5 | . 1 . . . . . . 2 . . . . 1 . . . . . . . . . 1 . . . . . Feedback Events 1 | . . . . . . . . 1 . . . . . . . . . . . . . . . . . . . . Corruption 1 | . . . . . . . . 1 . . . . . . . . . . . . . . . . . . . . Feedback Blocked 1 | . . . . . . . . . . . . . . . . . . . . . . . 1 . . . . . Robot Schematics Acquired 6 | . . . . . . . . . . . . . . . . 6 . . . . . . . . . . . . Robots Built . | . . . . . . . . . . . . . . . . . . . . . . . . . . . . . Authchips . | . . . . . . . . . . . . . . . . . . . . . . . . . . . . . Time . | . . . . . . . . . . . . . . . . . . . . . . . . . . . . . Total Robot Build Rating . | . . . . . . . . . . . . . . . . . . . . . . . . . . . . . Part Schematics Acquired 16 | . . . 3 . . . . . . . . . . . . 12 . . . . . . 1 . . . . . Parts Built . | . . . . . . . . . . . . . . . . . . . . . . . . . . . . . Authchips . | . . . . . . . . . . . . . . . . . . . . . . . . . . . . . Time . | . . . . . . . . . . . . . . . . . . . . . . . . . . . . . Total Part Build Rating . | . . . . . . . . . . . . . . . . . . . . . . . . . . . . . Parts Repaired 2 | . . . . . . . . . . . . . . . . . . 2 . . . . . . . . . . Time 38 | . . . . . . . . . . . . . . . . . . 38 . . . . . . . . . . Parts Recycled . | . . . . . . . . . . . . . . . . . . . . . . . . . . . . . Recycled Matter . | . . . . . . . . . . . . . . . . . . . . . . . . . . . . . Retrieved Matter . | . . . . . . . . . . . . . . . . . . . . . . . . . . . . . Retrieved Components . | . . . . . . . . . . . . . . . . . . . . . . . . . . . . . Parts Scanalyzed 4 | . . . 3 . . . . . . . . . . . . . . . . . . . 1 . . . . . Part Schematics Acquired 3 | . . . 3 . . . . . . . . . . . . . . . . . . . . . . . . . Parts Damaged . | . . . . . . . . . . . . . . . . . . . . . . . . . . . . . Bothacking | -11 -10 -10 -9 -9 -9 -8 -8 -7 -7 -7 -7 -6 -6 -6 -6 -6 -5 -5 -5 -5 -5 -4 -4 -4 -4 -4 -4 -3 ------------ Run | Scr Mat Min Mat Min Exi Min Mat Fac Low Low Zio Pro Fac Low Low Dat Pro Fac Upp Upp War Pro Fac Ext Cet Arc Hub Res Used RIF Installer . | . . . . . . . . . . . . . . . . . . . . . . . . . . . . . Robots Hacked . | . . . . . . . . . . . . . . . . . . . . . . . . . . . . . Non-combat . | . . . . . . . . . . . . . . . . . . . . . . . . . . . . . Combat . | . . . . . . . . . . . . . . . . . . . . . . . . . . . . . Robot Hacks Applied . | . . . . . . . . . . . . . . . . . . . . . . . . . . . . . Relay Couplers Released . | . . . . . . . . . . . . . . . . . . . . . . . . . . . . . Fabnet Peak Effective % . | . . . . . . . . . . . . . . . . . . . . . . . . . . . . . Robots Rewired 3 | . . . . . . . . . . . . . . . . . . . . . . . . 3 . . . . Allies Hacked . | . . . . . . . . . . . . . . . . . . . . . . . . . . . . . Hacks Repelled . | . . . . . . . . . . . . . . . . . . . . . . . . . . . . . Allies | -11 -10 -10 -9 -9 -9 -8 -8 -7 -7 -7 -7 -6 -6 -6 -6 -6 -5 -5 -5 -5 -5 -4 -4 -4 -4 -4 -4 -3 -------- Run | Scr Mat Min Mat Min Exi Min Mat Fac Low Low Zio Pro Fac Low Low Dat Pro Fac Upp Upp War Pro Fac Ext Cet Arc Hub Res Total Allies 16 | . . . . . . . 1 . . . . . . . . . 1 . . . . . . 9 5 . . . Largest Group 6 | . . . . . . . 1 . . . . . . . . . 1 . . . . . . 6 6 6 5 . Highest-Rated Group 633 | . . . . . . . 10 . . . . . . . . . 96 . . . . . . 360 633 633 480 . Highest-Rated Ally 159 | . . . . . . . 10 . . . . . . . . . 96 . . . . . . 159 159 153 96 . Total Orders . | . . . . . . . . . . . . . . . . . . . . . . . . . . . . . Ally Attacks 182 | . . . . . . . . . . . . . . . . . 14 . . . . . . 21 45 24 78 . Total Damage 7151 | . . . . . . . . . . . . . . . . . 698 . . . . . . 544 1402 1016 3491 . Kills 34 | . . . . . . . . . . . . . . . . . 5 . . . . . . 3 5 4 17 . Allies Corrupted . | . . . . . . . . . . . . . . . . . . . . . . . . . . . . . Allies Melted 1 | . . . . . . . . . . . . . . . . . 1 . . . . . . . . . . . Intel | -11 -10 -10 -9 -9 -9 -8 -8 -7 -7 -7 -7 -6 -6 -6 -6 -6 -5 -5 -5 -5 -5 -4 -4 -4 -4 -4 -4 -3 ------- Run | Scr Mat Min Mat Min Exi Min Mat Fac Low Low Zio Pro Fac Low Low Dat Pro Fac Upp Upp War Pro Fac Ext Cet Arc Hub Res Robot Analysis Total . | . . . . . . . . . . . . . . . . . . . . . . . . . . . . . Derelict Logs Recovered 13 | . . 1 . 1 . . . . 1 2 1 1 . . . . 3 . . 2 . 1 . . . . . . Drone Launches . | . . . . . . . . . . . . . . . . . . . . . . . . . . . . . Drone Recoveries . | . . . . . . . . . . . . . . . . . . . . . . . . . . . . . Exploration | -11 -10 -10 -9 -9 -9 -8 -8 -7 -7 -7 -7 -6 -6 -6 -6 -6 -5 -5 -5 -5 -5 -4 -4 -4 -4 -4 -4 -3 ------------- Run | Scr Mat Min Mat Min Exi Min Mat Fac Low Low Zio Pro Fac Low Low Dat Pro Fac Upp Upp War Pro Fac Ext Cet Arc Hub Res Turns Passed 9451 | 48 52 284 105 12 147 55 147 506 398 309 502 180 318 319 143 41 430 724 185 290 478 202 875 876 242 105 241 1237 Spaces Moved 13427 | 24 90 200 190 24 276 95 201 623 717 575 961 299 477 581 250 78 632 937 232 470 687 328 1443 800 275 182 353 1427 Core 8940 | 24 90 138 190 24 276 95 201 556 714 575 960 298 471 580 250 77 591 931 225 470 680 328 95 . . . . 101 Treads 193 | . . 62 . . . . . 67 3 . 1 1 6 1 . 1 41 2 7 . 1 . . . . . . . Legs . | . . . . . . . . . . . . . . . . . . . . . . . . . . . . . Wheels . | . . . . . . . . . . . . . . . . . . . . . . . . . . . . . Hover 1177 | . . . . . . . . . . . . . . . . . . . . . . . . . . . . 1177 Flight 3117 | . . . . . . . . . . . . . . . . . . 4 . . 6 . 1348 800 275 182 353 149 Fastest Speed 32 | 50 50 50 50 50 50 50 50 50 50 50 50 50 50 50 50 50 50 50 50 50 32 50 34 34 34 34 34 37 Average Speed 48 | 50 50 81 50 50 50 50 55 61 50 50 50 50 51 50 50 51 56 50 53 50 51 52 35 34 34 34 35 52 Slowest Speed 200 | 50 50 152 50 50 50 50 150 160 160 50 148 148 160 154 50 152 152 163 163 50 200 150 50 34 34 34 117 116 Overloaded Moves . | . . . . . . . . . . . . . . . . . . . . . . . . . . . . . Propulsion Burnouts . | . . . . . . . . . . . . . . . . . . . . . . . . . . . . . Robots Hopped 31 | . . . . . . . . . . . . . . . . . . . . . . . 19 4 1 . 7 . Cave-ins Triggered . | . . . . . . . . . . . . . . . . . . . . . . . . . . . . . Exploration Rate (%) 50 | 3 23 37 30 12 70 28 26 17 82 70 83 58 15 69 53 68 72 27 60 72 85 62 37 64 80 95 41 28 Regions Visited 28 Branch Regions 20 Pre-discovered Areas 7 | . . . . . . . . . . 1 2 1 . . . 1 . . . 2 . . . . . . . . Known Exits Taken 23 | . . . 1 . . 1 1 1 1 1 1 1 1 1 1 1 1 1 1 1 1 1 1 1 1 1 1 . Unknown Exits Taken 5 | 1 1 1 . 1 1 . . . . . . . . . . . . . . . . . . . . . . . Scrap Searched 15 | . . . . . . . . . 2 . 1 3 . 1 1 . 3 . 1 1 . 2 . . . . . . Spaces Dug 152 | . . . 2 . . . 5 6 . . . 16 4 2 . . 19 15 . . . . 20 38 1 . 12 12 Terrain Destroyed 623 | . 1 . 2 . 1 3 5 13 . . . 32 4 48 16 . 74 15 . . . 73 99 43 1 . 172 21 Melee 58 | . . . . . . . . 6 . . . 1 4 2 . . 5 15 . . . . 17 3 1 . 4 . Projectile 81 | . 1 . 2 . 1 . 5 . . . . . . . . . . . . . . . 3 40 . . 8 21 AOE 484 | . . . . . . 3 . 7 . . . 31 . 46 16 . 69 . . . . 73 79 . . . 160 . Terrain Rammed . | . . . . . . . . . . . . . . . . . . . . . . . . . . . . . Walls Destroyed . | . . . . . . . . . . . . . . . . . . . . . . . . . . . . . Machines Disabled . | . . . . . . . . . . . . . . . . . . . . . . . . . . . . . Actions | -11 -10 -10 -9 -9 -9 -8 -8 -7 -7 -7 -7 -6 -6 -6 -6 -6 -5 -5 -5 -5 -5 -4 -4 -4 -4 -4 -4 -3 --------- Run | Scr Mat Min Mat Min Exi Min Mat Fac Low Low Zio Pro Fac Low Low Dat Pro Fac Upp Upp War Pro Fac Ext Cet Arc Hub Res Total 15677 | 51 93 320 197 23 283 100 227 716 747 585 981 320 525 598 258 79 679 1131 293 524 813 348 1716 1276 386 221 425 1762 Wait 1177 | . . 102 . . . 2 4 30 18 . 1 12 13 9 . 1 22 119 59 55 101 5 147 262 92 33 29 61 Move 13341 | 23 89 199 189 23 275 94 200 622 716 574 960 298 476 580 249 77 631 936 231 469 686 327 1405 791 272 181 341 1427 Hop 27 | . . . . . . . . . . . . . . . . . . . . . . . 18 4 1 . 4 . Pick Up 64 | . . 6 . . 2 . 1 6 1 1 1 . 3 . . . . 2 . . . . 11 5 2 . . 23 Fast Attach 167 | 2 . 3 2 . . . 4 14 1 1 5 . 6 . . . . 21 . . 13 1 17 15 2 3 3 54 Attach 50 | 4 . 2 2 . 1 1 4 3 . . 1 . 1 2 1 1 4 2 1 . . 3 4 2 1 . 1 9 Detach 48 | . . 2 2 . 1 1 4 3 . . 3 . 1 1 2 . 5 2 2 . . 3 4 . . . 1 11 Swap 80 | . . 2 . . . . . 3 5 . 4 4 3 . . . . 1 . . . . 11 10 . . 9 28 Drop 194 | 10 . 3 . . 2 . 3 15 3 2 6 1 7 . . . . 21 . . 13 . 28 21 . 3 5 51 Fire 191 | 12 1 . 2 . 2 2 7 2 . . . 4 . 3 3 . 8 . . . . 9 9 43 . . 9 75 Melee 233 | . . 1 . . . . . 18 3 7 . 1 15 3 3 . 9 27 . . . . 49 60 16 1 11 9 Ram 4 | . 3 . . . . . . . . . . . . . . . . . . . . . . . . . . 1 Kick . | . . . . . . . . . . . . . . . . . . . . . . . . . . . . . Crush . | . . . . . . . . . . . . . . . . . . . . . . . . . . . . . Escape Stasis 91 | . . . . . . . . . . . . . . . . . . . . . . . 13 53 . . 12 13 Rewire 10 | . . . . . . . . . . . . . . . . . . . . . . . . 10 . . . . Trap . | . . . . . . . . . . . . . . . . . . . . . . . . . . . . . Miscellaneous . | . . . . . . . . . . . . . . . . . . . . . . . . . . . . . Route ------- -11/Scrapyard -10/Materials -10/Mines -9/Materials (discovered 5 exits: Mat / *Min x2 / *Sto x2) -9/Mines -9/Exiles (discovered 2 exits: [*Min x2]) -8/Mines -8/Materials (discovered 3 exits: *Fac x3) -7/Factory (discovered 2 exits: *Low x2) -7/Lower Caves -7/Lower Caves (discovered 2 exits: *Fac / *Zio) -7/Zion -6/Proximity Caves -6/Factory (discovered 2 exits: *Low x2) -6/Lower Caves -6/Lower Caves -6/Data Miner -5/Proximity Caves -5/Factory (discovered 2 exits: *Upp x2) -5/Upper Caves -5/Upper Caves -5/Warlord -4/Proximity Caves -4/Factory (discovered 3 exits: *Res x2 / *Ext) -4/Extension (discovered 2 exits: *Res / *Cet) -4/Cetus -4/Archives (discovered 3 exits: *Res / *Hub x2) -4/Hub_04(d) -3/Research History --------- Turn | Location | Event 8 | -11/Scrapyard | Discovered new exit (range 1) 49 | -11/Scrapyard | Entered Materials 97 | -10/Materials | Discovered new exit (range 10) 101 | -10/Materials | Entered Mines 110 | -10/Mines | Met a Derelict who couldn't figure out how to use a Trap Extractor 158 | -10/Mines | Learned 8 Materials zone layouts 178 | -10/Mines | System corruption reached 10% 312 | -10/Mines | Build established: Mutant 379 | -10/Mines | Discovered new exit (range 15) 385 | -10/Mines | Entered Materials 385 | -9/Materials | Evolved 2 slots: Utility x2 386 | -9/Materials | Identified exit to Storage 386 | -9/Materials | Identified exit to Materials 460 | -9/Materials | Identified exit to Mines 490 | -9/Materials | Entered Mines 494 | -9/Mines | Learned location of 1 exit from Materials 500 | -9/Mines | Deemed a non-threat by the Exiles lab entrance 500 | -9/Mines | Discovered new exit (range 5) 502 | -9/Mines | Entered Exiles 510 | -9/Exiles | Discovered new exit (range 15) 515 | -9/Exiles | Met 8R-AWN 524 | -9/Exiles | Met EX-HEX 538 | -9/Exiles | Met EX-BIN 544 | -9/Exiles | Aligned with FarCom system 544 | -9/Exiles | Given EX-Vault access code 556 | -9/Exiles | Opened EX-Vault 567 | -9/Exiles | Warned to stay clear of 0b10 Research branches 581 | -9/Exiles | Met EX-DEC 638 | -9/Exiles | Attacked by the Exiles 645 | -9/Exiles | Discovered new exit (range 10) 649 | -9/Exiles | Entered Mines 699 | -8/Mines | Discovered exit to Materials (range 9) 704 | -8/Mines | Entered Materials 704 | -8/Materials | Evolved 2 slots: Propulsion x2 705 | -8/Materials | Identified exit to Factory 851 | -8/Materials | Entered Factory 851 | -7/Factory | Evolved 2 slots: Utility x2 910 | -7/Factory | Identified exit to Lower Caves 1357 | -7/Factory | Entered Lower Caves 1365 | -7/Lower Caves | Encountered a Warlord checkpoint 1578 | -7/Lower Caves | Learned 4 Factory zone layouts 1609 | -7/Lower Caves | Build established: Scout 1746 | -7/Lower Caves | Discovered new exit (range 11) 1755 | -7/Lower Caves | Identified exit to Lower Caves 1755 | -7/Lower Caves | Entered another Lower Caves area 1789 | -7/Lower Caves | Discovered new exit (range 15) 1845 | -7/Lower Caves | Encountered a Warlord checkpoint 1897 | -7/Lower Caves | Learned Factory stockpile data 2037 | -7/Lower Caves | Attracted the attention of an 0b10 checkpoint 2053 | -7/Lower Caves | Learned location of Extension (-4) 2060 | -7/Lower Caves | Discovered new exit (range 8) 2063 | -7/Lower Caves | Identified exit to Zion 2064 | -7/Lower Caves | Entered Zion 2093 | -7/Zion | System corruption cleaned by Quarantine Array 2236 | -7/Zion | Learned Factory stockpile data 2257 | -7/Zion | Learned location of Armory (-3) 2266 | -7/Zion | Learned Factory scanalyzer intel 2305 | -7/Zion | Given the Hacking Drone Bay 2308 | -7/Zion | Found Prototype Device 2308 | -7/Zion | Identified Hacking Drone Bay 2516 | -7/Zion | Discovered new exit (range 12) 2538 | -7/Zion | Visited the Megawrench Repair Shop 2539 | -7/Zion | Megawrench repaired 8 parts 2563 | -7/Zion | Identified exit to Proximity Caves 2566 | -7/Zion | Entered Proximity Caves 2729 | -6/Proximity Caves | Attracted the attention of an 0b10 checkpoint 2742 | -6/Proximity Caves | Discovered new exit (range 9) 2745 | -6/Proximity Caves | Identified exit to Factory 2746 | -6/Proximity Caves | Entered Factory 2746 | -6/Factory | Evolved 2 slots: Propulsion x1, Utility x1 2747 | -6/Factory | Identified exit to Lower Caves 2749 | -6/Factory | Loaded intel: 4 scanalyzer locations 2804 | -6/Factory | Identified exit to DSF 3064 | -6/Factory | Entered Lower Caves 3095 | -6/Lower Caves | Encountered a Warlord checkpoint 3111 | -6/Lower Caves | Build established: Scavenger-Scout 3370 | -6/Lower Caves | Discovered new exit (range 8) 3382 | -6/Lower Caves | Identified exit to Lower Caves 3383 | -6/Lower Caves | Entered another Lower Caves area 3521 | -6/Lower Caves | Discovered new exit (range 11) 3526 | -6/Lower Caves | Identified exit to Data Miner 3526 | -6/Lower Caves | Entered Data Miner 3526 | -6/Data Miner | Discovered new exit (range 7) 3536 | -6/Data Miner | Met Data Miner 3545 | -6/Data Miner | Learned location of Section 7 (-2) 3545 | -6/Data Miner | Acquired the access code to Warlord's prototype stash 3554 | -6/Data Miner | Received God Mode back door access code from Data Miner 3565 | -6/Data Miner | Identified exit to Proximity Caves 3567 | -6/Data Miner | Entered Proximity Caves 3653 | -5/Proximity Caves | Learned Factory stockpile data 3654 | -5/Proximity Caves | Learned Factory emergency access door positions 3657 | -5/Proximity Caves | Learned Factory stockpile data 3683 | -5/Proximity Caves | Build established: Scout 3835 | -5/Proximity Caves | Spotted B-75 Beast 3837 | -5/Proximity Caves | Escorted by Enhanced Grunt 3935 | -5/Proximity Caves | Destroyed B-75 Beast 3993 | -5/Proximity Caves | Discovered new exit (range 9) 3996 | -5/Proximity Caves | Identified exit to Factory 3997 | -5/Proximity Caves | Entered Factory 3997 | -5/Factory | Evolved 2 slots: Propulsion x1, Utility x1 4242 | -5/Factory | Identified exit to DSF 4275 | -5/Factory | Repaired Imp. Light Armor Plating? 4299 | -5/Factory | Repaired Adv. Treads 4462 | -5/Factory | Identified exit to DSF 4500 | -5/Factory | Identified exit to DSF 4645 | -5/Factory | Identified exit to Upper Caves 4681 | -5/Factory | Spotted B-75 Beast 4721 | -5/Factory | Entered Upper Caves 4773 | -5/Upper Caves | Spotted B-75 Beast 4899 | -5/Upper Caves | Discovered new exit (range 15) 4905 | -5/Upper Caves | Attracted the attention of an 0b10 checkpoint 4905 | -5/Upper Caves | Identified exit to Upper Caves 4906 | -5/Upper Caves | Entered another Upper Caves area 4940 | -5/Upper Caves | Encountered a Warlord checkpoint 5193 | -5/Upper Caves | Discovered new exit (range 9) 5194 | -5/Upper Caves | Attracted the attention of an 0b10 checkpoint 5196 | -5/Upper Caves | Identified exit to Warlord 5196 | -5/Upper Caves | Entered Warlord 5415 | -5/Warlord | Met Warlord 5422 | -5/Warlord | Opened Warlord's prototype stash 5426 | -5/Warlord | Found Prototype Processor 5426 | -5/Warlord | Identified Exp. Target Analyzer 5430 | -5/Warlord | Found Prototype Processor 5430 | -5/Warlord | Identified Exp. Targeting Computer 5440 | -5/Warlord | Warlord's base attacked by MAIN.C 5546 | -5/Warlord | Opened side exit 5670 | -5/Warlord | Discovered new exit (range 9) 5674 | -5/Warlord | Identified exit to Proximity Caves 5674 | -5/Warlord | Entered Proximity Caves 5718 | -4/Proximity Caves | Attracted the attention of an 0b10 checkpoint 5739 | -4/Proximity Caves | Learned Research stockpile data 5871 | -4/Proximity Caves | Discovered new exit (range 13) 5876 | -4/Proximity Caves | Identified exit to Factory 5876 | -4/Proximity Caves | Entered Factory 5876 | -4/Factory | Evolved 2 slots: Utility x2 6075 | -4/Factory | Spotted B-86 Titan 6156 | -4/Factory | Discovered new exit (range 9) 6176 | -4/Factory | Identified exit to Research 6199 | -4/Factory | Discovered new exit (range 16) 6205 | -4/Factory | Identified exit to Extension 6467 | -4/Factory | Discovered exit to Research (range 8) 6538 | -4/Factory | Build established: Infiltrator-Ninja 6751 | -4/Factory | Entered Extension 6875 | -4/Extension | Rescued a captive Derelict 6875 | -4/Extension | Rescued a captive Derelict 7025 | -4/Extension | Rescued a captive Derelict 7030 | -4/Extension | P-70 Sage assimilated allied V0-885(h) 7322 | -4/Extension | Rescued a captive Derelict 7360 | -4/Extension | Build established: Infiltrator-Mutant 7451 | -4/Extension | Disrupted transfer network 7501 | -4/Extension | Rescued A7 7590 | -4/Extension | Rescued a captive Derelict 7598 | -4/Extension | Discovered exit to Research (range 10) 7598 | -4/Extension | Discovered new exit (range 6) 7626 | -4/Extension | Identified exit to Cetus 7627 | -4/Extension | Entered Cetus 7627 | -4/Cetus | Accompanied by 3 allies (A7) 7632 | -4/Cetus | Acquired a Cetus Manufacturing Module code from A7 7638 | -4/Cetus | Spotted Cetus Guard 7639 | -4/Cetus | Spotted Cetus Guard 7639 | -4/Cetus | Spotted Cetus Guard 7643 | -4/Cetus | Spotted Cetus Guard 7647 | -4/Cetus | Destroyed Cetus Guard 7653 | -4/Cetus | Allies destroyed Cetus Guard 7668 | -4/Cetus | Allies destroyed Cetus Guard 7684 | -4/Cetus | Allies destroyed Cetus Guard 7698 | -4/Cetus | Lost 3 parts (1n2u) 7701 | -4/Cetus | Started Cetus Manufacturing Module 7709 | -4/Cetus | Escorted A7 to Cetus Mainframe 7726 | -4/Cetus | Manufactured an Enhanced Grunt 7751 | -4/Cetus | Manufactured an Enhanced Grunt 7773 | -4/Cetus | Discovered new exit (range 16) 7776 | -4/Cetus | Manufactured an Enhanced Grunt 7801 | -4/Cetus | Manufactured an Enhanced Grunt 7803 | -4/Cetus | Identified exit to Archives 7826 | -4/Cetus | Manufactured an Enhanced Grunt 7869 | -4/Cetus | Entered Archives 7869 | -4/Archives | Accompanied by 6 allies (A7) 7874 | -4/Archives | Received a hacking code to weaken MAIN.C 7902 | -4/Archives | Unable to access archive contents 7903 | -4/Archives | Discovered exit to Research (range 14) 7914 | -4/Archives | Discovered new exit (range 14) 7940 | -4/Archives | Discovered new exit (range 13) 7944 | -4/Archives | Identified exit to Hub_04(d) 7974 | -4/Archives | Entered Hub_04(d) 7974 | -4/Hub_04(d) | Accompanied by 5 allies 8104 | -4/Hub_04(d) | Network Hub disabled 8130 | -4/Hub_04(d) | Build established: Commander-Mutant 8174 | -4/Hub_04(d) | Spotted Lightning 8181 | -4/Hub_04(d) | Network Hub disabled 8181 | -4/Hub_04(d) | Spotted Lightning 8181 | -4/Hub_04(d) | Spotted Lightning 8194 | -4/Hub_04(d) | Discovered exit to Research (range 16) 8215 | -4/Hub_04(d) | Entered Research 8215 | -3/Research | Evolved 2 slots: Power x1, Utility x1 8239 | -3/Research | Lost 4 parts (1n2u1w) 8599 | -3/Research | Build established: Scavenger-Mutant 8958 | -3/Research | System corruption reached 10% 8979 | -3/Research | Destroyed 7 combat bots 8985 | -3/Research | Lost 6 parts (3n3u) 8996 | -3/Research | First assault squad dispatched 9134 | -3/Research | Lost 4 parts (3n1u) 9179 | -3/Research | Incoming assault squad redirected 9366 | -3/Research | Released all parts (10) 9390 | -3/Research | Spotted B-86 Titan 9395 | -3/Research | Core integrity fell below 50% 9419 | -3/Research | Core integrity fell below 20% 9434 | -3/Research | Lost 9 parts (5n4u) 9452 | -3/Research | Destroyed by S-43 Plague with Heavy Machine Gun Last Messages --------------- 09409_ Slug penetrates K-01 Serf. 09409_ K-01 Serf destroyed. 09409_ Penetrated by Slug. 09409_ Slug penetrates Catalytron. 09410_ R-10 Processor collects Med. Matter Pod. 09412_ Penetrated by Slug. 09412_ Slug penetrates Wall. 09414_ R-10 Processor collects Wheel. 09414_ Slug penetrates Catalytron. 09416_ Penetrated by Slug. 09418_ Slug penetrates Catalytron. 09423_ Acquired Spear. 09428_ S-43 Plague destroyed. 09437_ 7G6CX EQT4SO5DHLN1Y>F6 B 09440_ Penetrated by Slug. 09443_ Slug penetrates Wall. 09443_ Penetrated by Slug. 09443_ Slug penetrates Wall. 09443_ Penetrated by Slug. Map ----- +----------------------------------------------------+ | ??# # ## + #????????????? | | ?# + ## # #????????????? | | ?# # ## # #????????????? | | # #################### #????????????? | | # #????????????? | | " ######???????? | | # +???????? | | # ######???????? | | ?######### ############ #????????????? | | ?????????# #??????????# #????????????? | | ??????#####/############ ########?????? | | ??????# # ??? | | #######???????# # ?? | | ??????????????# # ??? | | ??????????????# + """ """ ??? | | ?????????????# # """ """ ######???? | | ?????????????## """ #ss """ """ #????????? | | ??????????????# """ # ####?????? | | ??????????????# """ !# #?????? | | ??????????????########### ! ##????? | | ????????????????????????# ?? | | ????????????????????????# #?????? | | ??????????????########### #### ######## #?????? | | ??????????????# # #??# #??????????????? | | ??????????????# # #??# #??????????????? | | ??????????????# #@ #??# #??????????????? | | ??????????????# # ####+######?????????? | | ??????????????# # # #?????????? | | ??????????????# + + #?????????? | | ??????????????# # # #?????????? | | ??????????????# # # #?????????? | | ??????????????######+#### #! #?????????? | | ?????????????????# # """ #?????????? | | ?????????????????# # """ #?????????? | | ?????????????????# # """ #?????????? | | ????????######???# ###########?????????? | | ????????# ??# ########???????????????????? | | ????????# ??# #??##########??????????????? | | ????????# ?# #? ! #??????????????? | | ????????# ?# #? #??????????????? | | ????????# # # ! #??????????????? | | ????????# # # #??????????????? | | ????????# + / #??????????????? | | ????????# # # """Y""" ???????????????? | | ????????#! # # """""""?????????????????? | | ???############### ###################????????? | | ???# ???????? | | ???# ???????? | | ???# ??????? | | ???# ]!! ???????? | +----------------------------------------------------+ Best States ------------- Heat Dissipation 84 Energy Generation 55 Energy Capacity 450 Matter Stores 424 Matter Capacity 800 Sight Range 22 Robot Scan Range 15 Terrain Scan Range 16 Terrain Scan Density 410 Jamming Range 16 Cloak Strength 3 Additional Mass Support 9 Corruption Block 3 Armor Coverage 750 Resistance: KI 25 Resistance: TH 25 Resistance: EM 25 Core Shielding 30 Propulsion Shielding 66 Utility Shielding 66 Weapon Shielding 66 Melee Speed Boost 30 Evasion (%) 66 Targeting Accuracy 8 Melee Accuracy 8 Target Analysis 14 Armor Integrity Analysis 40 Recoil Reduction 6 Offensive Hacking 20 Defensive Hacking 10 Trap Extractor Capacity 6 Item Schematics ----------------- Imp. Trap Extractor | -9/Materials | Scanalyzed Hvy. Particle Cannon | -9/Materials | Scanalyzed Hrd. Medium Armor Plating | -9/Materials | Scanalyzed Combat Drone Bay | -6/Data Miner | Free Lgt. Regenerative Plating | -6/Data Miner | Free Enh. Flexi-carbon Leg | -6/Data Miner | Free Exp. Heat Sink | -6/Data Miner | Free Adv. Medium Treads | -6/Data Miner | Free Enh. Coil Gun | -6/Data Miner | Free Imp. System Guard | -6/Data Miner | Free Imp. Arc Projector | -6/Data Miner | Free Hvy. Disruptor Cannon | -6/Data Miner | Free Dispersion Rifle | -6/Data Miner | Free Hyp. Mass Driver | -6/Data Miner | Free Biometal Leg | -6/Data Miner | Free Lgt. Quantum Reactor | -4/Factory | Hacked Robot Schematics ------------------ S-27 Virus | -6/Data Miner | Free M-22 Extractor | -6/Data Miner | Free G-50 Soldier | -6/Data Miner | Free R-10 Processor | -6/Data Miner | Free L-61 Swordsman | -6/Data Miner | Free A-15 Conveyor | -6/Data Miner | Free Fabricated ------------ Nothing Alien Tech Used ----------------- None Achievements -------------- None Challenges ------------ None Game ------ Seed ChargeSkeletonScreen Manual? 0 Play Time 03:51:42 Cumulative 369.6 hours Start 2022.03.22 @ 19:21:53 End 2022.03.23 @ 00:35:53 Sessions 1 Manual Loads 0 Difficulty Rogue Special Mode None Game No. 318 Rogue 318 Adventurer 0 Explorer 0 Win Type - Total 6 Types 5/0/1/0/0/0/0/0/0 Lore% 54 Gallery% 74 Achievement% 64 Wizard Run 0 Options --------- ASCII 0 Keyboard 0 Movement Numpad Keybinds 0 Fullscreen 2 Font 18/TerminusBold Map View 76x50 Tactical HUD 1 Map Filters NONE Filters NONE Steam 1 RUN: 5f3fff35-6ecb-4d9b-a094-c18a520fa08e